[Event "4NCL Div 1 2024-25"]
[Site "England"]
[Date "2025.02.15"]
[Round "5.7"]
[White "Jarocka, Liwia"]
[Black "Jackson, James P"]
[Result "1/2-1/2"]
[Annotator "ChessBase"]
[ECO "C95"]
[WhiteElo "2267"]
[BlackElo "2373"]
[PlyCount "136"]
[EventDate "2024.11.23"]
[EventType "team-tourn"]
[EventCountry "ENG"]
[SourceTitle "playchess.com"]
[Source "ChessBase"]
[SourceQuality "1"]
[TimeControl "40/6000+30:3000+30"]

1. e4 {[%emt 0:10:07]} e5 {[%emt 0:10:08]} 2. Nf3 {[%emt 0:00:13]} Nc6 {[%emt 0:00:06]} 3. Bb5 {[%emt 0:00:09]} a6 {[%emt 0:00:06]} 4. Ba4 {[%emt 0:00:07]} Nf6 {[%emt 0:00:06]} 5. O-O {[%emt 0:00:21]} Be7 {[%emt 0:00:33]} 6. Re1 {[%emt 0:00:21]} b5 {[%emt 0:00:07]} 7. Bb3 {[%emt 0:00:04]} d6 {[%emt 0:00:04]} 8. c3 {[%emt 0:00:18]} O-O {[%emt 0:00:08]} 9. h3 {[%emt 0:00:07]} Nb8 {[%emt 0:00:23]} 10. d4 {[%emt 0:01:16]} Nbd7 {[%emt 0:00:08]} 11. Nbd2 {[%emt 0:01:09]} Bb7 {[%emt 0:01:07]} 12. Bc2 {[%emt 0:00:45]} Re8 {[%emt 0:00:19]} 13. Nf1 {[%emt 0:00:13]} Bf8 {[%emt 0:00:16]} 14. Ng3 {[%emt 0:00:05]} g6 {[%emt 0:00:36]} 15. Bd2 {[%emt 0:02:28]} Bg7 {[%emt 0:20:20]} 16. Qc1 {[%emt 0:01:41]} c5 {[%emt 0:01:14]} 17. d5 {[%emt 0:05:57]} a5 {[%emt 0:05:03]} 18. a4 {[%emt 0:24:13]} Ba6 {[%emt 0:03:21]} 19. axb5 {[%emt 0:01:22]} Bxb5 {[%emt 0:00:07]} 20. c4 {[%emt 0:08:00]} Bxc4 {[%emt 0:01:45]} 21. Ba4 {[%emt 0:01:34]} Bd3 {[%emt 0:08:57]} 22. Bc6 {[%emt 0:00:50]} Rb8 {[%emt 0:03:00]} 23. Bxa5 {[%emt 0:02:43]} Qc8 {[%emt 0:00:48]} 24. Nd2 {[%emt 0:07:44]} Bh6 {[%emt 0:01:56]} 25. Qc3 {[%emt 0:01:02]} Bb5 {[%emt 0:05:55]} 26. Bxb5 {[%emt 0:01:17]} Rxb5 {[%emt 0:00:06]} 27. Nc4 {[%emt 0:00:39]} Bf8 {[%emt 0:05:09]} 28. Qd3 {[%emt 0:07:56]} Rb8 {[%emt 0:05:59]} 29. Bc3 {[%emt 0:12:27]} Nb6 {[%emt 0:01:56]} 30. Na5 {[%emt 0:02:36]} Ra8 {[%emt 0:01:35]} 31. b4 {[%emt 0:04:27]} Nfd7 {[%emt 0:04:16]} 32. Nc6 {[%emt 0:01:45]} Na4 {[%emt 0:02:58]} 33. Bd2 {[%emt 0:01:15]} cxb4 {[%emt 0:04:42]} 34. Bxb4 {[%emt 0:00:17]} Nac5 {[%emt 0:00:10]} 35. Qe3 {[%emt 0:02:36]} Qb7 {[%emt 0:01:49]} 36. Kh2 {[%emt 0:04:09]} Qb5 {[%emt 0:06:25]} 37. Bxc5 {[%emt 0:05:03]} Nxc5 {[%emt 0:00:38]} 38. Reb1 {[%emt 0:01:14]} Qd3 {[%emt 0:03:21]} 39. Qxd3 {[%emt 0:00:36]} Nxd3 {[%emt 0:00:06]} 40. Kg1 {[%emt 0:00:25]} Nc5 {[%emt 0:01:27]} 41. Kf1 {[%emt 0:24:41]} Bh6 {[%emt 0:24:11]} 42. f3 {[%emt 0:02:21]} Bd2 {[%emt 0:03:37]} 43. Ke2 {[%emt 0:05:10]} Bc3 {[%emt 0:00:23]} 44. Rxa8 {[%emt 0:00:25]} Rxa8 {[%emt 0:00:06]} 45. Rb8+ {[%emt 0:00:09]} Rxb8 {[%emt 0:00:06]} 46. Nxb8 {[%emt 0:00:03]} h5 {[%emt 0:00:40]} 47. Nc6 {[%emt 0:00:20]} Kg7 {[%emt 0:07:37]} 48. Na7 {[%emt 0:00:43]} Bb4 {[%emt 0:02:20]} 49. Nc6 {[%emt 0:03:01]} Ba3 {[%emt 0:00:29]} 50. Nf1 {[%emt 0:01:11]} h4 {[%emt 0:02:48]} 51. Ne3 {[%emt 0:02:59]} Nd7 {[%emt 0:00:09]} 52. Nc4 {[%emt 0:00:34]} Bc5 {[%emt 0:00:06]} 53. N6a5 {[%emt 0:01:52]} Kf6 {[%emt 0:01:14]} 54. Nb7 {[%emt 0:01:17]} Ke7 {[%emt 0:00:05]} 55. Nca5 {[%emt 0:03:02]} f5 {[%emt 0:01:53]} 56. Nc4 {[%emt 0:01:54]} Bb4 {[%emt 0:00:51]} 57. Ne3 {[%emt 0:00:47]} Kf6 {[%emt 0:00:50]} 58. Nc4 {[%emt 0:00:07]} Ke7 {[%emt 0:00:11]} 59. Ne3 {[%emt 0:00:49]} Nc5 {[%emt 0:09:49]} 60. Nc2 {[%emt 0:02:00]} Nxb7 {[%emt 0:00:26]} 61. Nxb4 {[%emt 0:00:01]} Kf6 {[%emt 0:15:59]} 62. Nc6 {[%emt 0:00:29]} Kg5 {[%emt 0:00:00]} 63. Ke3 {[%emt 0:00:27]} Nc5 {[%emt 0:00:00]} 64. Na7 {[%emt 0:00:57]} Nb7 {[%emt 0:00:00]} 65. Nc8 {[%emt 0:00:39]} Kf6 {[%emt 0:00:00]} 66. Kf2 {[%emt 0:00:29]} Kg5 {[%emt 0:00:00]} 67. Ke3 {[%emt 0:00:04]} Kf6 {[%emt 0:00:00]} 68. Kf2 {[%emt 0:00:04]} Kg5 {[%emt 0:00:00]} 1/2-1/2

[Event "4NCL Div 1 2024-25"]
[Site "England"]
[Date "2025.02.15"]
[Round "5.7"]
[White "McCarthy, Kevin C"]
[Black "Galyas, Miklos"]
[Result "0-1"]
[Annotator "ChessBase"]
[ECO "A01"]
[WhiteElo "1954"]
[BlackElo "2374"]
[PlyCount "50"]
[EventDate "2024.11.23"]
[EventType "team-tourn"]
[EventCountry "ENG"]
[SourceTitle "playchess.com"]
[Source "ChessBase"]
[SourceQuality "1"]
[TimeControl "40/6000+30:3000+30"]

1. b3 {[%emt 0:11:47]} d5 {[%emt 0:11:01]} 2. e3 {[%emt 0:00:13]} e5 {[%emt 0:01:33]} 3. Bb2 {[%emt 0:00:34]} Bd6 {[%emt 0:00:37]} 4. Nc3 {[%emt 0:08:01]} c6 {[%emt 0:00:33]} 5. Be2 {[%emt 0:00:50]} Nf6 {[%emt 0:00:55]} 6. d3 {[%emt 0:02:09]} O-O {[%emt 0:09:21]} 7. Qd2 {[%emt 0:07:13]} a5 {[%emt 0:02:54]} 8. a4 {[%emt 0:12:22]} Bb4 {[%emt 0:01:59]} 9. Ba3 {[%emt 0:00:23]} Na6 {[%emt 0:04:03]} 10. Bxb4 {[%emt 0:01:12]} Nxb4 {[%emt 0:01:55]} 11. Na2 {[%emt 0:02:33]} c5 {[%emt 0:01:55]} 12. Nxb4 {[%emt 0:08:55]} axb4 {[%emt 0:00:57]} 13. c3 {[%emt 0:10:49]} bxc3 {[%emt 0:01:54]} 14. Qxc3 {[%emt 0:00:58]} Qe7 {[%emt 0:01:04]} 15. Qb2 {[%emt 0:10:36]} d4 {[%emt 0:09:57]} 16. e4 {[%emt 0:00:33]} Ra6 {[%emt 0:03:24]} 17. Nf3 {[%emt 0:00:52]} Nh5 {[%emt 0:12:42]} 18. g3 {[%emt 0:04:11]} Rh6 {[%emt 0:04:40]} 19. Nh4 {[%emt 0:08:53]} Nf4 {[%emt 0:01:48]} 20. gxf4 {[%emt 0:01:33]} Rxh4 {[%emt 0:00:06]} 21. fxe5 {[%emt 0:01:21]} Qxe5 {[%emt 0:00:29]} 22. h3 {[%emt 0:03:10]} Rxh3 {[%emt 0:00:38]} 23. Rxh3 {[%emt 0:00:54]} Bxh3 {[%emt 0:00:03]} 24. Bf3 {[%emt 0:01:53]} Be6 {[%emt 0:02:24]} 25. O-O-O {[%emt 0:00:34]} Qf4+ {[%emt 0:00:07]} 0-1

[Event "4NCL Div 1 2024-25"]
[Site "England"]
[Date "2025.02.15"]
[Round "5.8"]
[White "Toma, Katarzyna"]
[Black "Patel, Zain"]
[Result "1/2-1/2"]
[Annotator "TA"]
[ECO "C60"]
[WhiteElo "2184"]
[BlackElo "2083"]
[PlyCount "121"]
[EventDate "2024.11.23"]
[EventType "team-tourn"]
[EventCountry "ENG"]
[SourceTitle "playchess.com"]
[Source "ChessBase"]
[SourceQuality "1"]
[TimeControl "40/6000+30:3000+30"]

{[%evp 9,121,54,56,50,66,72,112,-9,0,-68,-69,-136,-138,-141,-58,-66,-68,-45,-39,-30,0,0,22,-57,-59,-63,-39,-60,-6,-9,-12,-30,-37,-39,-25,-64,0,-59,-64,-89,-86,-86,-88,-95,-92,-111,-93,-98,-90,-98,-29,-29,-29,-29,-29,-29,-29,-31,-31,-36,-29,-31,-29,-29,0,0,0,0,0,-40,-40,-40,-40,-40,-40,-67,-42,-80,-81,-108,-70,-87,-73,-76,-33,-45,0,0,0,0,0,0,0,0,0,0,0,0,0,0,0,-2,0,0,0,0,0,0,0,0,0,0,0,0]} 1. e4 {[%emt 0:10:03]} e5 {[%emt 0:11:05]} 2. Nf3 {[%emt 0:00:08]} Nc6 {[%emt 0:00:05]} 3. Bb5 {[%emt 0:00:36]} Nge7 {[%emt 0:01:45]} 4. c3 {[%emt 0:00:22]} d5 {[%emt 0:01:56]} 5. Nxe5 {[%emt 0:06:57]} dxe4 {[%emt 0:01:50]} 6. Qe2 {[%emt 0:02:48] C60: Ruy Lopez: Unusual Black 3rd moves and 3...g6.} Qd5 {[%emt 0:10:28]} 7. Nxc6 {[%emt 0:09:48]} Nxc6 {[%emt 0:03:35]} 8. O-O {[%emt 0:07:14]} (8. d4 $16) 8... Be6 $1 $11 {[%emt 0:02:25]} 9. Re1 {[%emt 0:05:27]} ({Better is} 9. d4 $11) 9... O-O-O $15 {[%emt 0:09:24]} 10. a4 $146 {[%emt 0:21:18]} (10. b4 $15) ({Predecessor:} 10. b3 Bd6 11. Bc4 Qe5 12. g3 Bxc4 13. Qxc4 Qh5 14. Qe2 Qg6 15. Qxe4 Rhe8 16. Qxe8 Rxe8 17. Rxe8+ {0-1 Valiyev,S (2220)-Stefanou,D (2327) Belgrade Serbia op 2023 (7)}) 10... Na5 $17 {[%emt 0:05:44] [#]} (10... a6 11. Bxc6 Qxc6 12. b4 $17) 11. Na3 {[%emt 0:04:12]} c6 {[%emt 0:08:41]} ({Black should try} 11... Bxa3 $17 12. Rxa3 a6) 12. b4 $1 $15 {[%emt 0:00:30]} cxb5 {[%emt 0:00:27]} 13. bxa5 {[%emt 0:00:18] White is weak on the light squares} bxa4 {[%emt 0:01:03]} 14. a6 {[%emt 0:03:00]} b6 {[%emt 0:05:16]} 15. Nb5 {[%emt 0:00:51]} Bd7 {[%emt 0:06:15]} 16. c4 {[%emt 0:08:30]} (16. Nxa7+ $11 Kb8 17. c4) 16... Bxb5 {[%emt 0:00:32]} 17. cxb5 {[%emt 0:00:07]} f5 $36 {[%emt 0:12:00][%mdl 2048] Black is pushing.} 18. Rxa4 {[%emt 0:00:08]} Qd3 {[%emt 0:00:48]} (18... Bc5 $15) 19. Rc4+ $11 {[%emt 0:15:51]} Bc5 {[%emt 0:02:05]} 20. Rc3 {[%emt 0:00:14]} Qxe2 {[%emt 0:00:30]} 21. Rxe2 {[%emt 0:00:02]} Rd4 {[%emt 0:01:35]} 22. g3 {[%emt 0:04:16]} Rb4 {[%emt 0:02:13]} (22... Rhd8 $15) 23. Ba3 {[%emt 0:03:09]} (23. d3 $11) 23... Rxb5 $15 {[%emt 0:00:06]} 24. d4 {[%emt 0:00:40]} exd3 {[%emt 0:00:15]} 25. Rxd3 {[%emt 0:00:06]} Rd8 {[%emt 0:02:08]} 26. Rc3 {[%emt 0:00:18]} Kd7 {[%emt 0:06:02]} 27. Rd2+ {[%emt 0:00:47]} Kc7 {[%emt 0:00:12]} 28. Re2 {[%emt 0:01:08]} g6 {[%emt 0:04:56]} 29. Kg2 {[%emt 0:01:57]} Ra5 {[%emt 0:01:16]} (29... Rd7 $17) 30. Bb4 $11 {[%emt 0:00:37]} Rxa6 {[%emt 0:00:16] and ...Kc6 should not be overlooked} 31. Bxc5 {[%emt 0:00:05]} bxc5 {[%emt 0:00:04]} 32. Rxc5+ {[%emt 0:00:05][%mdl 4096] Endgame KRR-KRR. Black is a pawn up.} Rc6 {[%emt 0:00:06]} 33. Ra5 {[%emt 0:00:30]} a6 {[%emt 0:00:17]} 34. h4 {[%emt 0:00:54]} Rd7 {[%emt 0:01:45]} 35. Rb2 {[%emt 0:01:05]} Rd4 {[%emt 0:00:55]} 36. h5 {[%emt 0:00:46]} f4 {[%emt 0:01:25]} 37. hxg6 {[%emt 0:01:41]} hxg6 {[%emt 0:00:05]} 38. Rba2 {[%emt 0:00:24]} Kb7 {[%emt 0:02:40]} 39. Rb2+ {[%emt 0:00:28]} Rb6 {[%emt 0:00:43]} 40. Re2 {[%emt 0:00:51]} fxg3 {[%emt 0:02:02]} 41. fxg3 {[%emt 0:50:47]} Rb5 {[%emt 0:51:29]} 42. Ra3 {[%emt 0:00:09]} Rbd5 {[%emt 0:00:35]} 43. Rb2+ {[%emt 0:02:04] [#]} Ka7 $1 {[%emt 0:03:27]} 44. Rbb3 {[%emt 0:00:00]} g5 {[%emt 0:00:00]} 45. Re3 {[%emt 0:00:00]} g4 {[%emt 0:00:00]} 46. Re7+ {[%emt 0:00:00]} Rd7 {[%emt 0:00:00]} 47. Re6 {[%emt 0:00:00]} Rd2+ {[%emt 0:00:00]} 48. Kf1 {[%emt 0:00:00] The position is equal.} Rd1+ {[%emt 0:00:00]} 49. Ke2 {[%emt 0:00:00]} R7d2+ {[%emt 0:00:00]} 50. Ke3 {[%emt 0:00:00]} Re1+ {[%emt 0:00:00]} 51. Kxd2 {[%emt 0:00:00]} Rxe6 {[%emt 0:00:00] KR-KR. Black is a pawn up.} 52. Ra4 {[%emt 0:00:00]} Rg6 {[%emt 0:00:00]} 53. Kc3 {[%emt 0:00:00]} Rg5 {[%emt 0:00:00]} 54. Rf4 {[%emt 0:00:00]} Kb6 {[%emt 0:00:00]} 55. Kb4 {[%emt 0:00:00]} a5+ {[%emt 0:00:00]} 56. Ka4 {[%emt 0:00:00]} Kc6 {[%emt 0:00:00]} 57. Rc4+ {[%emt 0:00:00]} Kd5 {[%emt 0:00:00]} 58. Rf4 {[%emt 0:00:00]} Ke6 {[%emt 0:00:00]} 59. Ka3 {[%emt 0:00:00]} Kd6 {[%emt 0:00:00]} 60. Ka4 {[%emt 0:00:00]} Kc6 {[%emt 0:00:00]} 61. Rc4+ {[%emt 0:00:00] Weighted Error Value: White=0.16 (very precise) /Black=0.13 (very precise)   Mistake:       	White=5     	Black=4      Inaccurate:     	White=5     	Black=6      OK:         	White=20    	Black=15     Best:        	White=6     	Black=4      Strong:       	White=1     	Black=2} 1/2-1/2

[Event "4NCL Div 1 2024-25"]
[Site "England"]
[Date "2025.02.15"]
[Round "5.9"]
[White "Merry, Alan B"]
[Black "Roberson, Peter T"]
[Result "1/2-1/2"]
[Annotator "ChessBase"]
[ECO "E11"]
[WhiteElo "2417"]
[BlackElo "2432"]
[PlyCount "75"]
[EventDate "2024.11.23"]
[EventType "team-tourn"]
[EventCountry "ENG"]
[SourceTitle "playchess.com"]
[Source "ChessBase"]
[SourceQuality "1"]
[TimeControl "40/6000+30:3000+30"]

1. d4 {[%emt 0:10:02]} d5 {[%emt 0:10:17]} 2. c4 {[%emt 0:00:05]} e6 {[%emt 0:00:04]} 3. Nf3 {[%emt 0:00:04]} Nf6 {[%emt 0:00:14]} 4. g3 {[%emt 0:00:04]} Bb4+ {[%emt 0:00:07]} 5. Bd2 {[%emt 0:00:06]} Be7 {[%emt 0:00:23]} 6. Bg2 {[%emt 0:00:05]} O-O {[%emt 0:00:05]} 7. O-O {[%emt 0:00:03]} c6 {[%emt 0:00:40]} 8. Qc2 {[%emt 0:00:04]} Nbd7 {[%emt 0:00:25]} 9. a4 {[%emt 0:00:05]} a5 {[%emt 0:01:42]} 10. Na3 {[%emt 0:03:34]} Bd6 {[%emt 0:01:34]} 11. Rfd1 {[%emt 0:12:23]} Qe7 {[%emt 0:14:30]} 12. Ne1 {[%emt 0:24:54]} Re8 {[%emt 0:09:35]} 13. Nd3 {[%emt 0:11:26]} e5 {[%emt 0:02:04]} 14. dxe5 {[%emt 0:09:04]} Nxe5 {[%emt 0:00:11]} 15. cxd5 {[%emt 0:01:18]} Nxd5 {[%emt 0:09:33]} 16. Bxd5 {[%emt 0:09:02]} cxd5 {[%emt 0:02:51]} 17. Nf4 {[%emt 0:02:38]} Ng4 {[%emt 0:11:15]} 18. Nb5 {[%emt 0:04:25]} Bc5 {[%emt 0:15:27]} 19. e3 {[%emt 0:00:26]} b6 {[%emt 0:01:53]} 20. h3 {[%emt 0:06:46]} Nf6 {[%emt 0:08:44]} 21. Bc3 {[%emt 0:00:28]} Ne4 {[%emt 0:01:34]} 22. Rxd5 {[%emt 0:05:22]} Bb7 {[%emt 0:04:38]} 23. Re5 {[%emt 0:03:12]} Qf8 {[%emt 0:00:49]} 24. Rd1 {[%emt 0:00:53]} Rxe5 {[%emt 0:07:30]} 25. Bxe5 {[%emt 0:00:06]} Rc8 {[%emt 0:01:20]} 26. Qb3 {[%emt 0:02:28]} Qe8 {[%emt 0:02:01]} 27. Bd4 {[%emt 0:01:43]} Bb4 {[%emt 0:00:40]} 28. Nc3 {[%emt 0:02:04]} Ng5 {[%emt 0:02:16]} 29. h4 {[%emt 0:01:35]} Nf3+ {[%emt 0:01:02]} 30. Kf1 {[%emt 0:00:07]} Bxc3 {[%emt 0:00:10]} 31. Bxc3 {[%emt 0:00:51]} Qe4 {[%emt 0:00:49]} 32. Qxb6 {[%emt 0:00:26]} Nh2+ {[%emt 0:01:16]} 33. Ke1 {[%emt 0:00:23]} Nf3+ {[%emt 0:00:28]} 34. Kf1 {[%emt 0:00:25]} Nh2+ {[%emt 0:00:49]} 35. Ke1 {[%emt 0:00:32]} Nf3+ {[%emt 0:00:24]} 36. Kf1 {[%emt 0:00:43]} Nh2+ {[%emt 0:00:36]} 37. Ke1 {[%emt 0:00:06]} Nf3+ {[%emt 0:00:04]} 38. Kf1 {[%emt 0:00:12]} 1/2-1/2

[Event "4NCL Div 1 2024-25"]
[Site "England"]
[Date "2025.02.15"]
[Round "5.10"]
[White "O`Gorman, Tom"]
[Black "Panjwani, Raja"]
[Result "1-0"]
[Annotator "ChessBase"]
[ECO "B30"]
[WhiteElo "2380"]
[BlackElo "2448"]
[PlyCount "61"]
[EventDate "2024.11.23"]
[EventType "team-tourn"]
[EventCountry "ENG"]
[SourceTitle "playchess.com"]
[Source "ChessBase"]
[SourceQuality "1"]
[TimeControl "40/6000+30:3000+30"]

1. e4 {[%emt 0:10:05]} c5 {[%emt 0:10:11]} 2. Nf3 {[%emt 0:00:06]} Nc6 {[%emt 0:00:13]} 3. Bc4 {[%emt 0:00:06]} e6 {[%emt 0:03:37]} 4. O-O {[%emt 0:00:14]} a6 {[%emt 0:02:20]} 5. Re1 {[%emt 0:00:22]} Nf6 {[%emt 0:09:27]} 6. Bd5 {[%emt 0:00:08]} d6 {[%emt 0:14:31]} 7. Bxc6+ {[%emt 0:01:50]} bxc6 {[%emt 0:00:06]} 8. e5 {[%emt 0:01:31]} dxe5 {[%emt 0:00:31]} 9. Nxe5 {[%emt 0:00:24]} Bd6 {[%emt 0:01:43]} 10. d3 {[%emt 0:01:52]} Qc7 {[%emt 0:04:15]} 11. Nf3 {[%emt 0:01:48]} O-O {[%emt 0:19:50]} 12. Nbd2 {[%emt 0:05:14]} e5 {[%emt 0:00:47]} 13. Nc4 {[%emt 0:04:33]} Bg4 {[%emt 0:01:07]} 14. h3 {[%emt 0:03:18]} Bxf3 {[%emt 0:00:12]} 15. Qxf3 {[%emt 0:00:08]} Nd5 {[%emt 0:00:15]} 16. Ne3 {[%emt 0:07:49]} Nxe3 {[%emt 0:00:28]} 17. Qxe3 {[%emt 0:01:32]} f5 {[%emt 0:06:40]} 18. b3 {[%emt 0:03:12]} Rae8 {[%emt 0:01:33]} 19. Bb2 {[%emt 0:06:06]} e4 {[%emt 0:01:37]} 20. dxe4 {[%emt 0:01:34]} fxe4 {[%emt 0:03:58]} 21. Qe2 {[%emt 0:02:57]} Qf7 {[%emt 0:09:16]} 22. Rad1 {[%emt 0:02:58]} Re6 {[%emt 0:01:01]} 23. Bc1 {[%emt 0:11:32]} Qf5 {[%emt 0:02:25]} 24. Be3 {[%emt 0:02:05]} Rg6 {[%emt 0:04:35]} 25. Kf1 {[%emt 0:09:40]} Qe5 {[%emt 0:05:25]} 26. Qxa6 {[%emt 0:01:49]} Kh8 {[%emt 0:02:49]} 27. Qxc6 {[%emt 0:02:25]} Be7 {[%emt 0:03:07]} 28. Qd5 {[%emt 0:01:14]} Qg3 {[%emt 0:00:31]} 29. Qxe4 {[%emt 0:00:47]} Bh4 {[%emt 0:00:47]} 30. Kg1 {[%emt 0:02:03]} Qxh3 {[%emt 0:01:26]} 31. Qxg6 {[%emt 0:00:16]} 1-0

[Event "4NCL Div 1 2024-25"]
[Site "England"]
[Date "2025.02.15"]
[Round "5.11"]
[White "Taylor, Martin R"]
[Black "Makkar, Rajat"]
[Result "0-1"]
[Annotator "ChessBase"]
[ECO "E36"]
[WhiteElo "2353"]
[BlackElo "2432"]
[PlyCount "84"]
[EventDate "2024.11.23"]
[EventType "team-tourn"]
[EventCountry "ENG"]
[SourceTitle "playchess.com"]
[Source "ChessBase"]
[SourceQuality "1"]
[TimeControl "40/6000+30:3000+30"]

1. c4 {[%emt 0:10:03]} Nf6 {[%emt 0:10:31]} 2. d4 {[%emt 0:01:02]} e6 {[%emt 0:00:22]} 3. Nc3 {[%emt 0:00:11]} Bb4 {[%emt 0:00:20]} 4. Qc2 {[%emt 0:00:36]} O-O {[%emt 0:00:39]} 5. a3 {[%emt 0:00:19]} Bxc3+ {[%emt 0:00:25]} 6. Qxc3 {[%emt 0:00:06]} d5 {[%emt 0:00:05]} 7. Bg5 {[%emt 0:02:09]} c5 {[%emt 0:00:57]} 8. dxc5 {[%emt 0:08:12]} d4 {[%emt 0:07:12]} 9. Qc2 {[%emt 0:01:57]} e5 {[%emt 0:03:26]} 10. Rd1 {[%emt 0:15:39]} h6 {[%emt 0:05:32]} 11. Bxf6 {[%emt 0:05:05]} Qxf6 {[%emt 0:01:13]} 12. e4 {[%emt 0:06:37]} a5 {[%emt 0:07:46]} 13. b4 {[%emt 0:09:01]} axb4 {[%emt 0:04:52]} 14. axb4 {[%emt 0:00:09]} Nc6 {[%emt 0:09:14]} 15. Rb1 {[%emt 0:07:31]} Qg6 {[%emt 0:02:33]} 16. Ne2 {[%emt 0:14:23]} f5 {[%emt 0:04:42]} 17. b5 {[%emt 0:04:51]} Nd8 {[%emt 0:02:12]} 18. Ng3 {[%emt 0:01:43]} f4 {[%emt 0:00:46]} 19. Ne2 {[%emt 0:01:07]} Ne6 {[%emt 0:01:01]} 20. f3 {[%emt 0:05:33]} Nxc5 {[%emt 0:02:27]} 21. Nc1 {[%emt 0:00:16]} Ra3 {[%emt 0:04:02]} 22. Nd3 {[%emt 0:03:00]} Rc3 {[%emt 0:04:06]} 23. Qd2 {[%emt 0:01:11]} Qd6 {[%emt 0:03:22]} 24. Be2 {[%emt 0:04:32]} Be6 {[%emt 0:01:24]} 25. O-O {[%emt 0:06:00]} Bxc4 {[%emt 0:02:20]} 26. Nb4 {[%emt 0:00:23]} Bxe2 {[%emt 0:05:40]} 27. Qxe2 {[%emt 0:00:06]} d3 {[%emt 0:01:03]} 28. Qf2 {[%emt 0:01:05]} Nb3 {[%emt 0:00:36]} 29. Nd5 {[%emt 0:00:20]} Rc2 {[%emt 0:00:14]} 30. Rxb3 {[%emt 0:01:30]} Rxf2 {[%emt 0:00:25]} 31. Rxf2 {[%emt 0:00:08]} Ra8 {[%emt 0:00:31]} 32. g3 {[%emt 0:00:47]} Ra3 {[%emt 0:03:58]} 33. Rb1 {[%emt 0:00:12]} Qc5 {[%emt 0:01:22]} 34. Kg2 {[%emt 0:00:25]} Qc4 {[%emt 0:00:42]} 35. gxf4 {[%emt 0:01:14]} Ra2 {[%emt 0:00:08]} 36. Rbf1 {[%emt 0:00:33]} Rxf2+ {[%emt 0:01:22]} 37. Rxf2 {[%emt 0:00:10]} exf4 {[%emt 0:00:59]} 38. Nxf4 {[%emt 0:00:15]} Qc3 {[%emt 0:00:50]} 39. Nd5 {[%emt 0:00:51]} Qc1 {[%emt 0:00:08]} 40. Rf1 {[%emt 0:00:19]} Qd2+ {[%emt 0:03:51]} 41. Rf2 {[%emt 0:31:04]} Qg5+ {[%emt 0:20:20]} 42. Kh3 {[%emt 0:00:14]} Qc1 {[%emt 0:01:20]} 0-1

[Event "4NCL Div 1 2024-25"]
[Site "England"]
[Date "2025.02.15"]
[Round "5.12"]
[White "Williams, Samuel G"]
[Black "Rogers, Jonathan W"]
[Result "1/2-1/2"]
[Annotator "ChessBase"]
[ECO "D08"]
[WhiteElo "2224"]
[BlackElo "2331"]
[PlyCount "129"]
[EventDate "2024.11.23"]
[EventType "team-tourn"]
[EventCountry "ENG"]
[SourceTitle "playchess.com"]
[Source "ChessBase"]
[SourceQuality "1"]
[TimeControl "40/6000+30:3000+30"]

1. d4 {[%emt 0:10:06]} d5 {[%emt 0:10:22]} 2. c4 {[%emt 0:00:11]} e5 {[%emt 0:01:31]} 3. dxe5 {[%emt 0:02:07]} Ne7 {[%emt 0:00:08]} 4. a3 {[%emt 0:04:07]} Nbc6 {[%emt 0:00:27]} 5. Nf3 {[%emt 0:01:24]} Bg4 {[%emt 0:00:31]} 6. Nbd2 {[%emt 0:03:21]} dxc4 {[%emt 0:11:06]} 7. Qa4 {[%emt 0:04:54]} Bxf3 {[%emt 0:10:46]} 8. gxf3 {[%emt 0:06:08]} Qd5 {[%emt 0:01:37]} 9. e4 {[%emt 0:03:10]} Qxe5 {[%emt 0:01:04]} 10. Bxc4 {[%emt 0:15:26]} a6 {[%emt 0:07:37]} 11. Qb3 {[%emt 0:04:38]} O-O-O {[%emt 0:01:11]} 12. Bxf7 {[%emt 0:05:47]} Nd4 {[%emt 0:00:19]} 13. Qc3 {[%emt 0:01:26]} g6 {[%emt 0:10:06]} 14. Nb3 {[%emt 0:15:54]} Nec6 {[%emt 0:01:14]} 15. Nxd4 {[%emt 0:04:07]} Nxd4 {[%emt 0:00:31]} 16. Bb3 {[%emt 0:01:06]} Bg7 {[%emt 0:00:45]} 17. Bd1 {[%emt 0:03:13]} Rhf8 {[%emt 0:10:49]} 18. Be3 {[%emt 0:05:14]} Rxf3 {[%emt 0:09:38]} 19. Rc1 {[%emt 0:06:43]} Rf7 {[%emt 0:01:13]} 20. f3 {[%emt 0:03:39]} Nxf3+ {[%emt 0:05:07]} 21. Bxf3 {[%emt 0:00:07]} Qxc3+ {[%emt 0:00:09]} 22. bxc3 {[%emt 0:00:06]} Rxf3 {[%emt 0:00:04]} 23. Ke2 {[%emt 0:00:21]} Rxe3+ {[%emt 0:00:31]} 24. Kxe3 {[%emt 0:00:05]} Bh6+ {[%emt 0:00:05]} 25. Ke2 {[%emt 0:02:06]} Bxc1 {[%emt 0:00:43]} 26. Rxc1 {[%emt 0:00:01]} Kd7 {[%emt 0:00:17]} 27. Rb1 {[%emt 0:01:07]} b6 {[%emt 0:01:32]} 28. h4 {[%emt 0:00:37]} Ke6 {[%emt 0:00:39]} 29. Ke3 {[%emt 0:00:34]} Rd6 {[%emt 0:04:21]} 30. Rf1 {[%emt 0:00:19]} Ke7 {[%emt 0:03:48]} 31. e5 {[%emt 0:03:39]} Rd5 {[%emt 0:00:49]} 32. Ke4 {[%emt 0:00:05]} Ra5 {[%emt 0:01:59]} 33. h5 {[%emt 0:00:20]} Rxa3 {[%emt 0:05:24]} 34. hxg6 {[%emt 0:00:02]} hxg6 {[%emt 0:00:16]} 35. Kd4 {[%emt 0:00:08]} Ra4+ {[%emt 0:01:14]} 36. Kd5 {[%emt 0:00:14]} Ra5+ {[%emt 0:05:17]} 37. Kd4 {[%emt 0:01:34]} Ra2 {[%emt 0:01:57]} 38. Rg1 {[%emt 0:01:09]} Rd2+ {[%emt 0:02:55]} 39. Ke4 {[%emt 0:01:18]} a5 {[%emt 0:00:38]} 40. Rxg6 {[%emt 0:00:19]} a4 {[%emt 0:00:29]} 41. Rg7+ {[%emt 0:51:05]} Kd8 {[%emt 0:50:45]} 42. Rg8+ {[%emt 0:00:34]} Kd7 {[%emt 0:00:14]} 43. Ra8 {[%emt 0:02:02]} b5 {[%emt 0:00:00]} 44. c4 {[%emt 0:00:00]} Kc6 {[%emt 0:00:00]} 45. cxb5+ {[%emt 0:00:00]} Kxb5 {[%emt 0:00:00]} 46. e6 {[%emt 0:00:00]} c5 {[%emt 0:00:00]} 47. e7 {[%emt 0:00:00]} Re2+ {[%emt 0:00:00]} 48. Kd5 {[%emt 0:00:00]} Rxe7 {[%emt 0:00:00]} 49. Rb8+ {[%emt 0:00:00]} Ka5 {[%emt 0:00:00]} 50. Kxc5 {[%emt 0:00:00]} Rc7+ {[%emt 0:00:00]} 51. Kd4 {[%emt 0:00:00]} a3 {[%emt 0:00:00]} 52. Kd3 {[%emt 0:00:00]} Ka4 {[%emt 0:00:00]} 53. Kd2 {[%emt 0:00:00]} Rc5 {[%emt 0:00:00]} 54. Ra8+ {[%emt 0:00:00]} Kb3 {[%emt 0:00:00]} 55. Rb8+ {[%emt 0:00:00]} Ka2 {[%emt 0:00:00]} 56. Rb7 {[%emt 0:00:00]} Ka1 {[%emt 0:00:00]} 57. Rb8 {[%emt 0:00:00]} a2 {[%emt 0:00:00]} 58. Rb7 {[%emt 0:00:00]} Rh5 {[%emt 0:00:00]} 59. Kc2 {[%emt 0:00:00]} Rh2+ {[%emt 0:00:00]} 60. Kc1 {[%emt 0:00:00]} Rh1+ {[%emt 0:00:00]} 61. Kc2 {[%emt 0:00:00]} Rb1 {[%emt 0:00:00]} 62. Ra7 {[%emt 0:00:00]} Rb2+ {[%emt 0:00:00]} 63. Kc1 {[%emt 0:00:00]} Rb8 {[%emt 0:00:00]} 64. Rc7 {[%emt 0:00:00]} Rc8 {[%emt 0:00:00]} 65. Rxc8 {[%emt 0:00:00]} 1/2-1/2